bitfinex/quotes_ETHUSD_20210401
["timestamp","ask_amount","ask_price","bid_price","bid_amount"]
[1617252639310,15.32288,1914.5,1913.7,0.39]
[1617252639538,15.32288,1914.5,1913.9,0.4]
[1617252639539,7.4832,1914.5,1913.9,0.4]
[1617252639737,2.14,1914.6,1913.9,0.4]
[1617252639738,0.14,1914.6,1913.9,0.4]
[1617252639937,3.32378351,1914.8,1913.9,0.4]
[1617252639938,2.91378351,1914.8,1914.1,0.39]
[1617252640138,4.07605391,1915.3,1914.1,0.39]
[1617252640139,3.23983742,1915.3,1914.3,25.95]
[1617252640338,3.23983742,1915.3,1914.7,0.39]
[1617252640538,3.23983742,1915.3,1914.9,0.357]
[1617252640539,1.08643504,1915.1,1914.9,0.357]
[1617252640940,3.23983742,1915.3,1915.0,0.39]
[1617252641137,1.87389248,1915.2,1915.0,0.39]
[1617252641362,1.87389248,1915.2,1915.1,9.14]
[1617252641562,1.87389248,1915.2,1915.1,6.6315]
[1617252641961,3.23983742,1915.3,1915.1,6.1315]
[1617252642168,3.23983742,1915.3,1915.1,6.5415]
[1617252642368,3.23983742,1915.3,1915.1,7.7415]
[1617252642571,3.23983742,1915.3,1915.2,0.41]
[1617252643573,3.63983742,1915.3,1915.1,6.8442]
[1617252643773,3.63983742,1915.3,1914.8,0.09406894]
[1617252643971,3.63983742,1915.3,1914.3,0.385]
[1617252643972,0.4,1914.9,1914.3,0.385]
[1617252644171,0.14,1915.0,1914.0,0.315]
[1617252644370,0.14,1915.0,1914.1,0.09406894]
[1617252644570,3.63983742,1915.3,1914.5,0.39]
[1617252644787,3.23983742,1915.3,1914.5,0.705]
[1617252645187,2.23983742,1915.3,1914.5,10.0994]
[1617252645388,2.23983742,1915.3,1914.6,0.09406894]
[1617252645586,2.23983742,1915.3,1914.7,0.35]
[1617252646192,2.23983742,1915.3,1914.9,0.4]
[1617252647417,2.23983742,1915.3,1914.6,0.4]
[1617252647418,0.39,1915.1,1914.6,0.4]
[1617252647615,0.39,1915.1,1914.3,0.41]
[1617252647616,0.38,1915.0,1914.3,0.41]
[1617252648014,0.38,1915.0,1914.2,0.09406894]
[1617252648215,0.38,1915.0,1914.4,0.315]
[1617252648418,0.52,1915.0,1914.4,0.315]
[1617252648618,0.14,1915.0,1914.5,0.36]
[1617252649015,0.14,1915.0,1914.4,0.315]
[1617252649217,5.01,1914.9,1914.3,0.4]
[1617252649417,0.14,1915.0,1914.4,0.322]
[1617252649617,0.53,1915.0,1914.4,0.322]
[1617252650240,0.14,1915.1,1914.5,0.4]
[1617252650440,0.14,1915.1,1914.4,0.712]
[1617252650841,5.15,1915.1,1914.4,0.712]
[1617252651041,5.15,1915.1,1914.5,0.41]
[1617252651444,5.15,1915.1,1914.4,0.322]
[1617252651641,5.15,1915.1,1914.4,0.712]
[1617252652672,5.54,1915.1,1914.4,0.322]
[1617252652875,5.54,1915.1,1914.1,0.41093691]
[1617252652876,0.4,1914.9,1914.1,0.41093691]
[1617252653074,0.4,1914.9,1914.2,0.09406894]
[1617252653075,10.492,1914.4,1914.2,0.09406894]
[1617252653273,10.492,1914.4,1914.1,0.01093691]
[1617252653274,29.33832702,1914.2,1914.1,0.01093691]
[1617252653473,29.33832702,1914.2,1913.9,0.01093691]
[1617252653474,25.1,1914.1,1913.9,0.01093691]
[1617252653876,11.04885585,1914.0,1913.9,6.91e-06]
[1617252654077,12.76331043,1914.0,1913.9,6.91e-06]
[1617252654273,11.11665458,1914.0,1913.9,6.91e-06]
[1617252654477,17.06665458,1914.0,1913.9,6.91e-06]
[1617252654675,19.03346404,1914.0,1913.9,6.91e-06]
[1617252655075,19.03346404,1914.0,1912.7,0.40004]
[1617252655076,1.8386453,1913.3,1912.7,0.40004]
[1617252655299,10.6014453,1913.3,1912.9,0.28]
[1617252655499,9.7628,1913.3,1912.7,0.40004]
[1617252655698,9.7628,1913.3,1912.8,0.41]
[1617252655699,7.84452,1913.2,1912.8,0.41]
[1617252655900,12.98423956,1913.3,1912.7,0.02004]
[1617252656098,2.0,1913.2,1912.8,0.38]
[1617252656300,3.23184224,1913.1,1912.6,0.07698548]
[1617252656702,1.7116845,1913.1,1912.6,0.07698548]
[1617252656899,0.4,1912.9,1912.6,0.07698548]
[1617252657098,9.6994,1912.9,1912.6,0.07698548]
[1617252657501,9.6994,1912.9,1912.1,0.03]
[1617252657502,31.2516845,1912.8,1912.1,0.03]
[1617252657700,0.397,1912.7,1912.1,0.03]
[1617252657938,0.10698548,1912.3,1912.1,0.03]
[1617252658139,8.60128548,1912.3,1912.1,0.03]
[1617252658342,8.60128548,1912.3,1911.4,1.29406894]
[1617252658343,5.79,1911.0,1910.8,0.40420716]
[1617252658542,5.79,1911.0,1910.8,5.63553716]
[1617252658937,5.79,1911.0,1910.9,0.4]
[1617252659138,5.79,1911.0,1910.9,1.6]
[1617252659341,5.79,1911.0,1910.9,11.5395694]
[1617252659538,5.79,1911.0,1910.9,27.3895694]
[1617252659737,5.79,1911.0,1910.9,31.5495694]
[1617252660338,4.79,1911.0,1910.9,31.5495694]
[1617252660544,4.79,1911.0,1910.9,15.53882812]
[1617252660744,4.79,1911.0,1910.9,5.69925872]
[1617252660944,4.79,1911.0,1910.6,0.5104053]
[1617252660945,5.18,1911.0,1910.6,0.1004053]
[1617252661544,0.4,1910.8,1910.6,0.1004053]
[1617252661745,11.14,1910.7,1910.6,0.1004053]
[1617252662145,13.14,1910.7,1910.4,2.21463213]
[1617252662345,13.14,1910.7,1909.5,0.02830691]
[1617252662346,29.15,1910.6,1909.5,0.02830691]
[1617252662543,29.15,1910.6,1909.2,12.5252597]
[1617252662544,0.09406894,1910.4,1909.9,0.28]
[1617252662744,0.09406894,1910.4,1909.6,2.01]
[1617252662945,4.57485111,1910.4,1909.8,0.41]
[1617252663173,4.57485111,1910.4,1909.6,0.42]
[1617252663174,0.09406894,1910.2,1909.6,0.42]
[1617252663374,0.4,1910.0,1909.6,0.42]
[1617252663572,2.0,1910.3,1909.6,0.42]
[1617252663773,2.0,1910.3,1909.7,0.4]
[1617252663774,2.49505451,1910.2,1909.7,0.4]
[1617252663974,0.41,1910.2,1909.7,0.35]
[1617252664176,2.0,1910.1,1909.7,0.35]
[1617252664377,2.0,1910.1,1909.6,0.42]
[1617252664580,2.4,1910.1,1909.6,0.37]
[1617252664777,0.38,1910.0,1909.6,0.37]
[1617252664978,0.38,1910.0,1909.4,0.41]
[1617252664979,2.40069415,1910.0,1909.4,0.41]
[1617252665179,2.0,1909.7,1909.3,0.287]
[1617252665377,2.0,1909.7,1908.7,11.5252597]
[1617252665378,9.8577,1909.7,1908.7,11.5252597]
[1617252665579,9.8577,1909.7,1909.4,0.1175909]
[1617252665580,28.05,1909.6,1909.4,0.1175909]
[1617252665797,18.2,1909.6,1909.4,0.1175909]
[1617252665999,0.4,1909.5,1909.4,0.1175909]
[1617252666198,2.4,1909.5,1909.4,0.1175909]
[1617252666398,2.37,1909.5,1909.4,0.1175909]
[1617252666597,2.37,1909.5,1909.0,0.1975909]
[1617252666798,0.4,1909.3,1909.0,0.1975909]
[1617252666999,2.0,1909.5,1909.0,0.5875909]
[1617252667203,0.41,1909.8,1909.0,0.5875909]
[1617252667399,2.09406894,1910.0,1909.1,9.12461024]
[1617252667598,17.38324087,1910.4,1909.1,9.12461024]
[1617252667599,1.273e-05,1910.4,1909.5,1.95]
[1617252667800,13.9463,1911.1,1909.6,2.08210466]
[1617252667801,5.18,1911.0,1909.6,2.08210466]
[1617252668000,5.18,1911.0,1910.5,0.4]
[1617252668001,4.79,1911.0,1910.5,0.4]
[1617252668202,4.79,1911.0,1910.9,0.00776292]
[1617252668430,4.79,1911.0,1910.9,2.03946292]
[1617252669031,5.19,1911.0,1910.9,2.03946292]
[1617252669633,4.79,1911.0,1910.9,2.03946292]
[1617252670031,5.19,1911.0,1910.9,2.03946292]
[1617252670231,4.19,1911.0,1910.9,2.03946292]
[1617252670432,4.35754708,1911.0,1910.9,1.88946292]
[1617252670635,4.35754708,1911.0,1910.9,0.76336292]
[1617252670832,4.35754708,1911.0,1910.8,0.9416]
[1617252671047,3.95754708,1911.0,1910.7,2.0673592]
[1617252671276,3.95754708,1911.0,1910.8,0.4]
[1617252671478,3.95754708,1911.0,1910.9,26.7173592]
[1617252671679,3.95754708,1911.0,1910.9,30.7773592]
[1617252672078,3.95754708,1911.0,1910.9,31.1673592]
[1617252674079,3.95754708,1911.0,1910.9,6.5173592]
[1617252674280,3.95754708,1911.0,1910.9,13.5573592]
[1617252674480,3.95754708,1911.0,1910.9,13.1673592]
[1617252674780,3.95754708,1911.0,1910.9,13.5673592]
[1617252675181,2.95754708,1911.0,1910.9,13.5673592]
[1617252675383,2.95754708,1911.0,1910.9,2.0673592]
[1617252675581,2.95754708,1911.0,1910.8,2.06702324]
[1617252675983,7.08e-06,1911.0,1910.9,29.5]
[1617252676182,7.08e-06,1911.0,1910.9,34.22]
[1617252676792,7.08e-06,1911.0,1910.9,54.60874697]
[1617252677993,7.08e-06,1911.0,1910.9,16.64524697]
[1617252678196,7.08e-06,1911.0,1910.9,5.07]
[1617252678394,7.08e-06,1911.0,1910.6,0.37406894]
[1617252678595,7.08e-06,1911.0,1910.8,0.4]
[1617252679039,7.08e-06,1911.0,1910.9,0.0093948]
[1617252679840,7.08e-06,1911.0,1910.9,0.4193948]
[1617252680047,7.08e-06,1911.0,1910.9,11.50660776]
[1617252680244,16.02000708,1912.0,1910.9,12.72780776]
[1617252680440,16.02000708,1912.0,1911.7,0.38]
[1617252680640,16.02000708,1912.0,1911.3,6.4755]
[1617252681041,16.40000708,1912.0,1911.4,0.41]
[1617252681242,16.40000708,1912.0,1911.4,0.49406894]
[1617252681243,16.30000708,1912.0,1911.4,0.49406894]
[1617252681648,15.92000708,1912.0,1911.5,0.4]
[1617252682244,23.76610708,1912.0,1911.5,0.4]
[1617252682443,23.76610708,1912.0,1911.2,0.41]
[1617252682444,0.41,1911.9,1911.2,0.41]
[1617252682644,0.41,1911.9,1911.1,0.287]
[1617252682645,0.4,1911.7,1911.1,0.287]
[1617252683243,0.4,1911.7,1911.2,0.38]
[1617252683445,23.76580708,1912.0,1911.4,0.39]
[1617252683848,23.76580708,1912.0,1911.5,2.07387514]
[1617252683849,15.92000708,1912.0,1911.5,2.07387514]
[1617252684045,15.92000708,1912.0,1911.5,8.07317514]
[1617252684271,15.92000708,1912.0,1911.9,36.0456]
[1617252684473,15.92000708,1912.0,1911.9,42.0056]
[1617252684673,1.35586708,1912.0,1911.9,42.0056]
[1617252684873,7.08e-06,1912.0,1911.9,36.9956]
[1617252685272,7.08e-06,1912.0,1911.9,48.52084697]
[1617252685476,7.08e-06,1912.0,1911.9,36.9956]
[1617252685673,7.08e-06,1912.0,1911.9,36.9456]
[1617252686073,7.08e-06,1912.0,1911.9,44.9456]
[1617252686291,13.07114,1913.7,1911.9,44.9456]
[1617252686292,2.75,1913.9,1912.0,29.1]
[1617252686492,5.22675,1914.4,1913.0,0.09406894]
[1617252686493,0.14,1914.0,1913.0,0.09406894]
[1617252686692,0.069,1914.0,1913.2,8.2988]
[1617252686893,0.069,1914.0,1913.2,7.9188]
[1617252687099,0.39,1913.6,1913.2,7.9188]
[1617252687695,0.41,1913.5,1913.2,7.9188]
[1617252687894,13.76,1913.3,1913.2,7.9188]
[1617252688099,8.25142,1913.3,1913.2,7.9188]
[1617252688894,15.25142,1913.3,1913.2,6.99916099]
[1617252689094,8.25142,1913.3,1913.2,6.99916099]
[1617252689546,10.85424,1913.6,1913.2,6.99916099]
[1617252689744,9.85424,1913.6,1913.2,6.99916099]
[1617252689945,14.679,1914.1,1913.3,21.51034282]
[1617252690145,2.75,1914.2,1913.3,25.77034282]
[1617252690344,2.75,1914.2,1913.4,0.301]
[1617252690547,1.32072431,1914.7,1914.1,6.9457]
[1617252690548,1.08677147,1914.7,1914.1,6.9457]
[1617252690943,0.4,1914.6,1914.1,6.5557]
[1617252691343,12.46456,1914.8,1914.1,6.5557]
[1617252691543,0.39,1914.7,1914.1,6.5557]
[1617252691943,7.83708,1914.5,1914.1,6.5557]
[1617252692555,7.83708,1914.5,1914.0,1.9837]
[1617252692556,2.75,1914.3,1914.0,1.9837]
[1617252692755,2.75,1914.3,1913.4,0.09406894]
[1617252692756,0.39,1914.1,1913.3,0.49585366]
[1617252692955,5.4,1914.1,1913.3,0.09406894]
[1617252693155,2.75,1914.3,1913.2,0.42178472]
[1617252693156,17.60892,1913.9,1913.2,0.42178472]
[1617252693360,25.60892,1913.9,1913.2,0.01178472]
[1617252693555,17.7693,1913.9,1913.2,0.01178472]
[1617252693756,0.39,1913.5,1913.2,0.01178472]
[1617252693956,7.559,1913.5,1913.2,0.01178472]
[1617252694155,15.559,1913.5,1913.2,0.01178472]
[1617252694357,7.84198,1913.4,1913.2,0.01178472]
[1617252694556,5.01,1913.3,1913.2,4.72e-06]
[1617252694783,5.42,1913.3,1913.2,4.72e-06]
[1617252695375,5.01,1913.3,1913.2,4.72e-06]
[1617252695576,15.84198,1913.4,1913.2,4.72e-06]
[1617252695577,7.84198,1913.4,1913.2,4.72e-06]
[1617252696377,7.00587479,1913.4,1913.2,4.72e-06]
[1617252696778,7.00587479,1913.4,1913.2,0.41000472]
[1617252696978,7.00587479,1913.4,1913.3,7.03]
[1617252696979,0.16389479,1913.4,1913.3,7.03]
[1617252697177,0.16389479,1913.4,1913.3,0.38]
[1617252697605,0.16389479,1913.4,1913.2,4.72e-06]
[1617252698206,5.17389479,1913.4,1913.2,4.72e-06]
[1617252698406,5.17389479,1913.4,1912.4,0.38]
[1617252698407,39.49821615,1913.3,1912.4,0.38]
[1617252698619,0.14,1912.9,1911.7,0.12817935]
[1617252698806,0.14,1912.9,1911.9,0.301]
[1617252698807,0.4,1912.8,1911.9,0.301]
[1617252699006,7.8451,1912.4,1912.0,0.38]
[1617252699206,7.8451,1912.4,1911.7,0.12817935]
[1617252699207,18.0137,1912.4,1911.7,0.12817935]
[1617252699606,1.2,1912.2,1911.7,0.12817935]
[1617252699807,1.9493,1912.2,1911.7,0.12817935]
[1617252700056,1.9493,1912.2,1911.7,0.52817935]
[1617252700245,9.9408098,1912.0,1911.7,0.52817935]
[1617252700445,1.2,1911.9,1911.7,0.12817935]
[1617252701045,3.35422942,1911.9,1911.7,0.07817935]
[1617252701289,1.2,1911.9,1911.7,0.07817935]
[1617252701445,0.2,1911.9,1911.8,0.00929627]
[1617252701645,2.2718,1912.0,1911.8,0.00929627]
[1617252701845,10.46371,1912.1,1911.8,0.00929627]
[1617252702046,11.66371,1912.1,1911.8,0.00929627]
[1617252702246,10.46371,1912.1,1911.8,0.00929627]
[1617252702447,2.89,1912.5,1912.0,0.38]
[1617252702659,14.2505,1912.8,1912.0,0.38]
[1617252702660,13.8605,1912.8,1912.0,0.38]
[1617252702861,14.7333,1912.6,1912.3,0.4]
[1617252703060,14.7333,1912.6,1911.8,0.00929627]
[1617252703260,14.7333,1912.6,1911.9,0.39]
[1617252703461,14.7333,1912.6,1911.8,0.00929627]
[1617252703463,0.4,1912.3,1911.8,0.00929627]
[1617252703663,9.2513,1912.2,1911.8,0.00929627]
[1617252703865,10.4513,1912.2,1911.8,0.00929627]
[1617252704061,14.37545,1912.2,1911.8,0.00929627]
[1617252704463,7.84818,1912.0,1911.8,0.00929627]
[1617252704663,9.04818,1912.0,1911.8,0.00929627]
[1617252704862,17.04818,1912.0,1911.8,0.00929627]
[1617252705062,1.2,1912.0,1911.8,0.00929627]
[1617252705283,1.59,1912.0,1911.8,6.27e-06]
[1617252705486,12.6180202,1911.9,1911.8,6.27e-06]
[1617252705682,29.5540402,1911.9,1911.7,2.189e-05]
[1617252705882,23.83728453,1911.9,1911.7,4.29e-06]
[1617252706082,23.83728453,1911.9,1910.6,0.48406894]
[1617252706083,0.14,1911.7,1910.6,0.48406894]
[1617252706284,0.14,1911.7,1910.6,0.39]
[1617252706285,1.0936414,1911.4,1910.6,0.39]
[1617252706487,11.5928614,1911.4,1910.6,0.39]
[1617252706684,19.5928614,1911.4,1910.7,0.4]
[1617252707283,19.5928614,1911.4,1910.4,0.28]
[1617252707284,5.2616,1911.3,1909.8,0.09406894]
[1617252707485,5.2616,1911.3,1910.5,0.38]
[1617252707486,7.85111,1911.0,1910.5,0.38]
[1617252707904,0.30409204,1911.3,1910.6,2.15244974]
[1617252708103,0.30409204,1911.3,1911.2,9.5496]
[1617252708104,0.16409204,1911.3,1911.2,9.5496]
[1617252708703,0.16409204,1911.3,1911.2,14.5596]
[1617252709905,0.16409204,1911.3,1911.2,21.5096]
[1617252710104,0.16409204,1911.3,1911.2,26.4696]
[1617252710304,0.16409204,1911.3,1911.2,14.5096]
[1617252710534,0.16409204,1911.3,1911.2,13.3096]
[1617252710735,0.16409204,1911.3,1911.2,17.9296]
[1617252711336,10.85446,1911.9,1911.2,13.3196]
[1617252711536,2.15005256,1911.8,1911.2,12.9196]
[1617252711741,2.15005256,1911.8,1911.2,9.1596]
[1617252711742,1.56109847,1911.6,1911.2,9.1596]
[1617252711936,8.8382,1911.5,1911.2,9.1596]
[1617252712139,52.78353,1911.5,1911.2,9.1596]
[1617252712336,52.78353,1911.5,1909.7,7.94447894]
[1617252712337,33.35005256,1911.4,1911.3,0.00681669]
[1617252713363,33.35005256,1911.4,1910.3,0.4]
[1617252713364,1.2,1911.2,1910.3,0.4]
[1617252713564,1.2,1911.2,1910.5,0.4]
[1617252713565,3.92643,1910.9,1910.5,0.4]
[1617252713764,37.9782,1911.3,1910.0,1.58106894]
[1617252713765,8.0,1911.3,1910.0,1.58106894]
[1617252713963,10.15005256,1911.3,1910.0,1.58106894]
[1617252714163,11.35005256,1911.3,1910.0,0.38106894]
[1617252714366,2.0940713,1911.0,1910.6,0.39]
[1617252714564,10.46869,1911.1,1909.9,11.95376894]
[1617252714764,10.46869,1911.1,1909.9,12.09376894]
[1617252714765,0.09406894,1910.8,1909.9,12.09376894]
[1617252714962,0.09406894,1910.8,1910.2,0.39]
[1617252715164,0.09406894,1910.8,1909.9,12.09376894]
[1617252715364,0.09406894,1910.8,1910.0,5.01]
[1617252715563,0.09406894,1910.8,1910.0,5.41]
[1617252715564,7.85293,1910.6,1910.0,5.41]
[1617252715787,1.1737,1910.9,1910.0,5.41]
[1617252715788,0.4,1910.7,1910.1,0.4]
[1617252715987,0.09406894,1911.0,1910.1,0.4]
[1617252716398,10.74869,1911.1,1910.5,0.41]
[1617252716399,9.84275894,1911.1,1910.5,0.41]
[1617252716599,0.39,1911.4,1910.8,0.39]
[1617252716800,7.8507,1911.1,1910.4,5.01]
[1617252717001,7.8507,1911.1,1910.6,0.39]
[1617252717198,7.8507,1911.1,1910.4,5.01]
[1617252717499,15.8507,1911.1,1910.5,0.4]
[1617252717699,0.4,1910.8,1910.2,0.38]
[1617252717899,0.4,1910.8,1910.1,0.09406894]
[1617252718099,8.25234,1910.8,1910.1,0.50406894]
[1617252718320,8.25234,1910.8,1910.1,0.41]
[1617252718524,10.47043,1910.9,1910.4,0.4]
[1617252718720,0.28,1911.0,1910.5,0.41]
[1617252718922,10.4685,1911.2,1910.5,0.41]
[1617252719121,10.8585,1911.2,1910.5,0.50406894]
[1617252719322,10.8585,1911.2,1910.5,0.41]
[1617252719524,0.4,1910.9,1910.4,5.01]
[1617252719720,0.4,1910.9,1910.3,0.14]
[1617252719721,0.4,1910.9,1910.3,0.54]
[1617252719921,0.4,1910.9,1910.3,0.23406894]
[1617252720121,0.4,1910.9,1910.0,0.48406894]
[1617252720122,2.54530486,1910.8,1910.0,0.48406894]
[1617252720325,2.54530486,1910.8,1910.0,0.09406894]
[1617252720326,7.8539,1910.4,1910.0,0.09406894]
[1617252720523,16.92070486,1910.4,1910.0,1.0577955]
[1617252720723,23.05,1910.1,1910.0,1.0577955]
[1617252721329,22.44,1910.1,1910.0,1.0577955]
[1617252721527,30.29564,1910.1,1910.0,1.0577955]
[1617252721728,39.49564,1910.1,1910.0,1.0577955]
[1617252721926,39.49564,1910.1,1908.8,0.72070503]
[1617252722134,39.49564,1910.1,1909.0,0.4]
[1617252722135,0.39,1909.7,1909.0,0.4]
[1617252722331,0.41,1909.8,1909.1,0.38]
[1617252722530,7.85649,1909.6,1909.1,0.38]
[1617252722729,10.88532,1909.8,1909.2,0.41]
[1617252722730,10.47532,1909.8,1909.2,0.41]
[1617252722931,2.0950623,1909.9,1909.3,0.4]
[1617252723129,2.4850623,1909.9,1909.3,0.3]
[1617252723553,2.4850623,1909.9,1908.9,0.14707696]
[1617252723554,7.85584,1909.7,1908.9,0.14707696]
[1617252723755,7.85584,1909.7,1908.9,0.00707696]
[1617252723953,7.85584,1909.7,1908.9,0.38707696]
[1617252723954,9.73401946,1909.7,1908.9,0.38707696]
[1617252724353,9.73401946,1909.7,1908.9,0.00707696]
[1617252724354,0.4,1909.5,1908.9,0.00707696]
[1617252724757,1.79030058,1909.5,1908.9,0.00707696]
[1617252724956,7.85803,1909.2,1908.9,0.00707696]
[1617252725153,17.03083,1909.2,1908.9,0.00707696]
[1617252725354,17.03083,1909.2,1908.9,6.96e-06]
[1617252725355,4.05286774,1909.1,1908.9,6.96e-06]
[1617252725554,4.05286774,1909.1,1908.2,0.11745246]
[1617252725555,0.14707,1908.7,1908.2,0.11745246]
[1617252725954,6.7926,1908.8,1908.2,0.11745246]
[1617252725955,7.61,1908.8,1908.2,0.11745246]
[1617252726183,7.61,1908.8,1908.2,0.50745246]
[1617252726383,7.3721,1908.8,1908.2,0.11745246]
[1617252726582,7.7521,1908.8,1908.2,0.11745246]
[1617252727389,0.41,1908.5,1908.2,0.11745246]
[1617252727783,3.7044785,1908.7,1908.2,0.11745246]
[1617252727784,2.096608,1908.7,1908.2,0.11745246]
[1617252727985,4.2203323,1908.7,1908.2,0.11745246]
[1617252728186,2.89068126,1908.5,1908.2,0.11745246]
[1617252728384,0.39,1908.4,1908.2,0.11745246]
[1617252728584,37.1432243,1908.3,1908.2,0.11745246]
[1617252729004,35.0195,1908.3,1908.2,0.11745246]
[1617252729204,38.02713704,1908.3,1908.2,0.11745246]
[1617252729604,44.82489234,1908.3,1908.2,0.11745246]
[1617252729805,46.01613817,1908.3,1908.2,0.11745246]
[1617252730008,38.01613817,1908.3,1908.2,0.11745246]
[1617252730405,39.32436413,1908.3,1908.2,0.11745246]
[1617252730604,39.71436413,1908.3,1908.2,0.11745246]
[1617252730803,37.21489234,1908.3,1908.2,0.11745246]
[1617252731005,38.21489234,1908.3,1908.2,0.11745246]
[1617252731204,39.52185664,1908.3,1908.2,0.11745246]
[1617252731430,45.21489234,1908.3,1908.2,0.11745246]
[1617252732231,48.35728997,1908.3,1908.2,2.46e-06]
[1617252732435,48.35728997,1908.3,1907.5,2.1024408]
[1617252732436,0.11745246,1908.2,1907.5,2.1024408]
[1617252732637,29.45,1907.6,1907.5,8e-07]
[1617252732834,39.0039,1907.6,1907.5,8e-07]
[1617252733239,28.05002493,1907.6,1907.5,8e-07]
[1617252733434,9.4539,1907.6,1907.5,8e-07]
[1617252733634,9.4539,1907.6,1907.5,0.4100008]
[1617252733834,9.4539,1907.6,1907.5,2.54349092]
[1617252733835,1.9,1907.6,1907.5,2.54349092]
[1617252734050,1.9,1908.2,1907.5,0.4100008]
[1617252734249,1.0,1908.3,1907.5,0.4100008]
[1617252734250,13.55,1907.6,1907.5,0.4100008]
[1617252734450,13.55,1907.6,1907.5,8e-07]
[1617252734451,15.42223918,1907.6,1907.5,8e-07]
[1617252734654,15.42223918,1907.6,1906.7,0.05454538]
[1617252734655,29.46,1907.5,1906.7,0.05454538]
[1617252734849,29.46,1907.5,1907.4,8.94e-06]
[1617252734850,32.1500008,1907.5,1907.4,8.94e-06]
[1617252735049,32.1500008,1907.5,1906.7,0.05454538]
[1617252735050,33.26905699,1907.5,1906.7,0.05454538]
[1617252735253,35.18314069,1907.5,1906.7,0.05454538]
[1617252735450,45.67348069,1907.5,1906.7,0.05454538]
[1617252735651,31.18349012,1907.4,1906.3,0.38]
[1617252735851,31.18349012,1907.4,1906.1,1.20454538]
[1617252735852,0.39,1906.5,1906.1,1.20454538]
[1617252736052,4.03349012,1906.4,1906.1,1.20454538]
[1617252736250,4.03349012,1906.4,1906.0,0.19899859]
[1617252736251,4.03349012,1906.4,1905.5,13.6491572]
[1617252736252,30.01,1906.2,1905.5,13.6491572]
[1617252736450,27.55,1906.1,1905.0,1.69823661]
[1617252736682,27.55,1906.1,1900.0,79.35664636]
[1617252736683,0.4,1904.9,1903.7,19.12717028]
[1617252736882,0.301,1904.6,1903.8,2.22012712]
[1617252737081,1.9,1904.5,1903.7,19.12717028]
[1617252737280,1.9,1904.5,1904.1,0.38]
[1617252737480,0.28,1904.7,1904.2,0.4]
[1617252737681,0.28,1904.7,1903.8,3.12]
[1617252737682,1.75,1904.4,1903.8,3.12]
[1617252737886,10.6434,1904.4,1903.8,3.12]
[1617252738080,0.38,1904.3,1903.6,0.53720956]
[1617252738280,10.6434,1904.4,1904.0,16.38459119]
[1617252738480,10.6434,1904.4,1903.7,0.36]
[1617252738481,0.49406894,1904.3,1903.7,0.36]
[1617252738681,0.09406894,1904.3,1904.2,0.39]
[1617252739081,1.75,1904.4,1904.2,0.39]
[1617252739309,1.75,1904.4,1904.3,0.41]
[1617252739510,1.75,1904.4,1904.3,0.38]
[1617252740111,1.75,1904.4,1904.0,0.39]
[1617252740312,2.15,1904.4,1903.9,5.01]
[1617252740514,0.4,1904.4,1903.6,0.14720956]
[1617252740711,1.84406894,1904.3,1903.9,0.41]
[1617252740910,1.75,1904.3,1903.9,0.41]
[1617252741110,1.75,1904.3,1903.6,0.14720956]
[1617252741310,1.84406894,1904.3,1903.7,0.41]
[1617252741511,1.84406894,1904.3,1903.8,2.61463974]
[1617252741512,1.75,1904.3,1903.8,2.61463974]
[1617252741712,1.75,1904.3,1904.0,0.38]
[1617252741929,0.09406894,1905.1,1904.2,35.799]
[1617252742131,2.6260342,1905.6,1904.3,0.27080114]
[1617252742132,0.09406894,1905.6,1904.3,0.27080114]
[1617252742328,17.62685874,1905.7,1905.0,0.39]
[1617252742329,5.2168597,1905.7,1905.0,0.39]
[1617252742530,5.2168597,1905.7,1905.0,6.6487]
[1617252742531,0.09406894,1905.6,1905.0,6.6487]
[1617252742730,0.39,1905.6,1905.0,6.6487]
[1617252742928,3.4995674,1905.7,1905.1,0.39]
[1617252743134,1.92172,1905.7,1905.1,0.39]
[1617252743328,0.4,1905.7,1905.1,0.39]
[1617252743528,0.32033,1905.7,1905.1,0.39]
[1617252743729,0.32033,1905.7,1905.1,5.4]
[1617252743933,0.09406894,1905.9,1905.2,0.41]
[1617252744133,0.27215688,1906.0,1905.7,0.39]
[1617252744334,0.27215688,1906.0,1905.8,10.50342554]
[1617252745167,0.27215688,1906.0,1905.9,0.00812511]
[1617252745964,0.27215688,1906.0,1905.9,2.28755065]
[1617252746163,0.27215688,1906.0,1905.9,2.66755065]
[1617252746564,0.27215688,1906.0,1905.9,22.56755065]
[1617252746767,0.27215688,1906.0,1905.9,6.88755065]
[1617252746965,0.27215688,1906.0,1905.9,0.00812511]
[1617252747387,18.77215688,1906.0,1905.9,0.00812511]
[1617252747586,20.17215688,1906.0,1905.9,0.00812511]
[1617252747788,1.67215688,1906.0,1905.9,0.00812511]
[1617252748388,19.97215688,1906.0,1905.9,0.00812511]
[1617252748987,1.67215688,1906.0,1905.9,0.00812511]
[1617252749813,1.27215688,1906.0,1905.9,0.00812511]
[1617252750608,1.67215688,1906.0,1905.9,0.00812511]
[1617252752114,1.27215688,1906.0,1905.9,0.00812511]
[1617252752316,1.27215688,1906.0,1905.9,20.00812511]
[1617252752531,1.27215688,1906.0,1905.9,30.78362511]
[1617252752932,1.27215688,1906.0,1905.9,31.18362511]
[1617252753132,0.09406894,1907.4,1906.2,0.14]
[1617252753335,4.9368597,1907.5,1906.7,5.01]
[1617252753336,0.39,1907.2,1906.7,5.01]
[1617252753537,0.09406894,1907.5,1906.9,0.4]
[1617252753734,0.09406894,1907.6,1907.0,2.2694211]
[1617252753932,7.86525,1907.7,1907.0,2.2694211]
[1617252753933,7.95931894,1907.7,1907.0,2.2694211]
[1617252754133,0.09406894,1907.7,1907.0,2.2694211]